[Event "*** Titled Tuesday Blitz"]
[Site "Chess.com"]
[Date "2021.04.20"]
[Round "6"]
[White "Apocalyps999"]
[Black "stepakyedael"]
[Result "1-0"]
[WhiteElo "2449"]
[BlackElo "2239"]
[TimeControl "180+1"]
[EndTime "11:05:46 PDT"]
[Termination "Apocalyps999 won on time"]

1. e4 {[%clk 0:03:00.9]} 1... Nf6 {[%clk 0:02:55.7]} 2. e5 {[%clk 0:02:59.8]}
2... Nd5 {[%clk 0:02:51.7]} 3. c4 {[%clk 0:02:59.5]} 3... Nb6 {[%clk 0:02:50.9]}
4. c5 {[%clk 0:03:00]} 4... Nd5 {[%clk 0:02:50.4]} 5. Bc4 {[%clk 0:03:00.6]}
5... e6 {[%clk 0:02:48.6]} 6. Nc3 {[%clk 0:03:00.1]} 6... Nxc3 {[%clk
0:02:42.2]} 7. dxc3 {[%clk 0:03:01]} 7... Bxc5 {[%clk 0:02:39.8]} 8. Qg4 {[%clk
0:03:00]} 8... Kf8 {[%clk 0:02:39.4]} 9. Nf3 {[%clk 0:02:59.2]} 9... Be7 {[%clk
0:02:37.9]} 10. Be3 {[%clk 0:02:57.2]} 10... d5 {[%clk 0:02:35.2]} 11. O-O-O
{[%clk 0:02:56.7]} 11... c6 {[%clk 0:02:31.2]} 12. Bd3 {[%clk 0:02:55.1]} 12...
Qa5 {[%clk 0:02:21.4]} 13. Kb1 {[%clk 0:02:54]} 13... Na6 {[%clk 0:02:16.2]} 14.
h4 {[%clk 0:02:53.3]} 14... b5 {[%clk 0:02:11.3]} 15. h5 {[%clk 0:02:49.8]}
15... h6 {[%clk 0:02:10.5]} 16. Nh4 {[%clk 0:02:46.5]} 16... b4 {[%clk
0:02:07.7]} 17. c4 {[%clk 0:02:46.1]} 17... b3 {[%clk 0:02:02.4]} 18. axb3
{[%clk 0:02:21]} 18... Nb4 {[%clk 0:02:00.6]} 19. Qf3 {[%clk 0:02:05.8]} 19...
Qa2+ {[%clk 0:01:49.8]} 20. Kc1 {[%clk 0:02:04.8]} 20... Qa1+ {[%clk 0:01:47.5]}
21. Bb1 {[%clk 0:02:02.8]} 21... Kg8 {[%clk 0:01:26.7]} 22. Ng6 {[%clk
0:01:55.4]} 22... fxg6 {[%clk 0:01:18]} 23. hxg6 {[%clk 0:01:56.3]} 23... Na2+
{[%clk 0:00:58.9]} 24. Kd2 {[%clk 0:01:24.3]} 24... Qxb2+ {[%clk 0:00:57.2]} 25.
Ke1 {[%clk 0:01:24.4]} 25... Bf6 {[%clk 0:00:49.7]} 26. exf6 {[%clk 0:01:22.6]}
26... Qc3+ {[%clk 0:00:21.1]} 27. Kf1 {[%clk 0:01:19.6]} 27... gxf6 {[%clk
0:00:16.4]} 28. g7 {[%clk 0:01:08.3]} 28... Kxg7 {[%clk 0:00:14.8]} 29. Rxh6
{[%clk 0:01:07.5]} 29... Rxh6 {[%clk 0:00:13.7]} 30. Bxh6+ {[%clk 0:01:06.8]}
30... Kxh6 {[%clk 0:00:13.9]} 31. Qf4+ {[%clk 0:01:04]} 31... Kg7 {[%clk
0:00:11.1]} 32. Bxa2 {[%clk 0:01:03.7]} 32... Qc2 {[%clk 0:00:10.1]} 33. Rd2
{[%clk 0:00:55.9]} 33... Qc1+ {[%clk 0:00:09.3]} 34. Ke2 {[%clk 0:00:55.9]}
34... Ba6 {[%clk 0:00:09.3]} 35. Qc7+ {[%clk 0:00:49.6]} 35... Kg6 {[%clk
0:00:06.8]} 36. Qxc6 {[%clk 0:00:49.7]} 36... Rh8 {[%clk 0:00:04.3]} 37. Qxe6
{[%clk 0:00:32.6]} 37... Rh1 {[%clk 0:00:03.6]} 38. Qg4+ {[%clk 0:00:27.5]}
38... Kf7 {[%clk 0:00:03.5]} 39. Rxd5 {[%clk 0:00:21.4]} 39... Qf1+ {[%clk
0:00:02]} 40. Kf3 {[%clk 0:00:19.8]} 1-0

[Event "*** Titled Tuesday Blitz"]
[Site "Chess.com"]
[Date "2021.04.20"]
[Round "6"]
[White "jacky72"]
[Black "deribas12345"]
[Result "1-0"]
[WhiteElo "2719"]
[BlackElo "2536"]
[TimeControl "180+1"]
[EndTime "11:05:47 PDT"]
[Termination "jacky72 won on time"]

1. d4 {[%clk 0:03:00.9]} 1... Nf6 {[%clk 0:02:53.9]} 2. c4 {[%clk 0:03:00.8]}
2... d6 {[%clk 0:02:49.9]} 3. Nf3 {[%clk 0:03:00.8]} 3... Bf5 {[%clk 0:02:49.9]}
4. Nc3 {[%clk 0:03:00.1]} 4... Ne4 {[%clk 0:02:50]} 5. Qb3 {[%clk 0:02:52.5]}
5... Qc8 {[%clk 0:02:49.3]} 6. Nd5 {[%clk 0:02:51]} 6... c6 {[%clk 0:02:45.1]}
7. Ne3 {[%clk 0:02:49.2]} 7... Bg6 {[%clk 0:02:45.3]} 8. g3 {[%clk 0:02:49.1]}
8... Nd7 {[%clk 0:02:43.6]} 9. h4 {[%clk 0:02:48.8]} 9... h6 {[%clk 0:02:42.8]}
10. Bh3 {[%clk 0:02:45.3]} 10... e6 {[%clk 0:02:35.3]} 11. O-O {[%clk
0:02:43.9]} 11... Be7 {[%clk 0:02:35.2]} 12. Ng2 {[%clk 0:02:19.1]} 12... Bf5
{[%clk 0:02:20.7]} 13. Bxf5 {[%clk 0:02:16.9]} 13... exf5 {[%clk 0:02:21.6]} 14.
Be3 {[%clk 0:02:14.4]} 14... g5 {[%clk 0:02:16.4]} 15. Qd3 {[%clk 0:01:57.3]}
15... Rg8 {[%clk 0:02:02.8]} 16. h5 {[%clk 0:01:56.1]} 16... Ndf6 {[%clk
0:02:02.1]} 17. Nfe1 {[%clk 0:01:49.7]} 17... Nxh5 {[%clk 0:01:54.6]} 18. d5
{[%clk 0:01:49.9]} 18... c5 {[%clk 0:01:50.1]} 19. Nc2 {[%clk 0:01:44]} 19...
Nhf6 {[%clk 0:01:43]} 20. b4 {[%clk 0:01:41]} 20... b6 {[%clk 0:01:37.4]} 21.
bxc5 {[%clk 0:01:40.7]} 21... bxc5 {[%clk 0:01:37.6]} 22. Rab1 {[%clk 0:01:40]}
22... Ng4 {[%clk 0:01:36.3]} 23. Rb3 {[%clk 0:01:31.3]} 23... Ne5 {[%clk
0:01:32.8]} 24. Qd1 {[%clk 0:01:26.1]} 24... Nxc4 {[%clk 0:01:32.9]} 25. Bc1
{[%clk 0:01:23.2]} 25... Kf8 {[%clk 0:01:17.7]} 26. Nce3 {[%clk 0:01:16.3]}
26... Ne5 {[%clk 0:01:15.5]} 27. Bb2 {[%clk 0:01:09.1]} 27... Bf6 {[%clk
0:01:15.3]} 28. Qc2 {[%clk 0:01:05.2]} 28... Qd7 {[%clk 0:01:10.5]} 29. Rb1
{[%clk 0:01:05.5]} 29... Nxf2 {[%clk 0:00:33.1]} 30. Kxf2 {[%clk 0:01:04.4]}
30... f4 {[%clk 0:00:32.8]} 31. Nf5 {[%clk 0:00:52.9]} 31... Ng4+ {[%clk
0:00:27.9]} 32. Kg1 {[%clk 0:00:53.2]} 32... fxg3 {[%clk 0:00:13]} 33. Bxf6
{[%clk 0:00:52.2]} 33... Nxf6 {[%clk 0:00:12.8]} 34. Rb8+ {[%clk 0:00:45]} 34...
Rxb8 {[%clk 0:00:12.6]} 35. Rxb8+ {[%clk 0:00:45.9]} 35... Ne8 {[%clk
0:00:11.5]} 36. Qe4 {[%clk 0:00:46.3]} 36... Rg6 {[%clk 0:00:09.8]} 37. Nge3
{[%clk 0:00:41.3]} 37... c4 {[%clk 0:00:07.1]} 38. Nxc4 {[%clk 0:00:39.1]} 38...
Rf6 {[%clk 0:00:06.4]} 39. Ncxd6 {[%clk 0:00:37.9]} 39... Rxf5 {[%clk
0:00:04.6]} 40. Rxe8+ {[%clk 0:00:37]} 40... Kg7 {[%clk 0:00:04.9]} 41. Nxf5+
{[%clk 0:00:37.1]} 41... Kf6 {[%clk 0:00:05.4]} 42. Qe5+ {[%clk 0:00:34.4]}
42... Kg6 {[%clk 0:00:05.8]} 43. Ne7+ {[%clk 0:00:34.1]} 43... Kh5 {[%clk
0:00:05.7]} 44. Qxg3 {[%clk 0:00:28.1]} 1-0

[Event "*** Titled Tuesday Blitz"]
[Site "Chess.com"]
[Date "2021.04.20"]
[Round "6"]
[White "sara_khm"]
[Black "BahadirOzen"]
[Result "1-0"]
[WhiteElo "2540"]
[BlackElo "2684"]
[TimeControl "180+1"]
[EndTime "11:05:49 PDT"]
[Termination "sara_khm won on time"]

1. d4 {[%clk 0:03:00.9]} 1... d6 {[%clk 0:03:00.5]} 2. c4 {[%clk 0:03:01]} 2...
e5 {[%clk 0:02:59.3]} 3. Nf3 {[%clk 0:03:00]} 3... Nd7 {[%clk 0:02:58.6]} 4. g3
{[%clk 0:02:59.9]} 4... g6 {[%clk 0:02:58.7]} 5. Bg2 {[%clk 0:03:00.2]} 5... Bg7
{[%clk 0:02:59.1]} 6. Nc3 {[%clk 0:03:00.5]} 6... Nh6 {[%clk 0:02:57.9]} 7. O-O
{[%clk 0:03:00.5]} 7... O-O {[%clk 0:02:58]} 8. dxe5 {[%clk 0:03:00.5]} 8...
dxe5 {[%clk 0:02:57.9]} 9. Qc2 {[%clk 0:03:00.7]} 9... f6 {[%clk 0:02:56.5]} 10.
Rd1 {[%clk 0:03:00.7]} 10... Nf7 {[%clk 0:02:56.5]} 11. b3 {[%clk 0:02:58.8]}
11... f5 {[%clk 0:02:53.4]} 12. e4 {[%clk 0:02:56.7]} 12... f4 {[%clk
0:02:53.3]} 13. Ba3 {[%clk 0:02:49.1]} 13... Re8 {[%clk 0:02:51]} 14. Rd2 {[%clk
0:02:49.3]} 14... c6 {[%clk 0:02:47.2]} 15. Rad1 {[%clk 0:02:48.6]} 15... Qa5
{[%clk 0:02:39.7]} 16. Qb2 {[%clk 0:02:41]} 16... Nf8 {[%clk 0:02:13.5]} 17. b4
{[%clk 0:02:32.3]} 17... Qc7 {[%clk 0:02:12.7]} 18. b5 {[%clk 0:02:31.5]} 18...
g5 {[%clk 0:02:11.6]} 19. Ne1 {[%clk 0:02:17]} 19... g4 {[%clk 0:02:10.5]} 20.
Nd3 {[%clk 0:02:14.7]} 20... Ng6 {[%clk 0:01:54.8]} 21. f3 {[%clk 0:02:07]}
21... gxf3 {[%clk 0:01:53.9]} 22. Bxf3 {[%clk 0:02:07]} 22... Ng5 {[%clk
0:01:54.4]} 23. Bg2 {[%clk 0:02:04.9]} 23... Bg4 {[%clk 0:01:48.3]} 24. Re1
{[%clk 0:01:52.6]} 24... f3 {[%clk 0:01:45.8]} 25. Bf1 {[%clk 0:01:52.3]} 25...
h5 {[%clk 0:01:37.3]} 26. Nf2 {[%clk 0:01:52.1]} 26... Rad8 {[%clk 0:01:25.1]}
27. Red1 {[%clk 0:01:50.1]} 27... Bf8 {[%clk 0:01:20]} 28. Bxf8 {[%clk
0:01:48.6]} 28... Rxf8 {[%clk 0:01:19.7]} 29. c5 {[%clk 0:01:39.1]} 29... Kh7
{[%clk 0:01:15]} 30. Rd6 {[%clk 0:01:28.2]} 30... Nf7 {[%clk 0:01:10]} 31. Rxd8
{[%clk 0:01:20.9]} 31... Rxd8 {[%clk 0:01:10.9]} 32. Rxd8 {[%clk 0:01:20.3]}
32... Nxd8 {[%clk 0:01:02.1]} 33. h3 {[%clk 0:01:17.3]} 33... Bc8 {[%clk
0:00:56.7]} 34. Qd2 {[%clk 0:01:16.4]} 34... Ne6 {[%clk 0:00:53.9]} 35. Qe3
{[%clk 0:01:14.7]} 35... Nd4 {[%clk 0:00:21.7]} 36. Qg5 {[%clk 0:01:13.6]} 36...
h4 {[%clk 0:00:22.3]} 37. gxh4 {[%clk 0:01:08.6]} 37... Qe7 {[%clk 0:00:16.4]}
38. Qxe7+ {[%clk 0:00:58.9]} 38... Nxe7 {[%clk 0:00:17.3]} 39. bxc6 {[%clk
0:00:59.4]} 39... bxc6 {[%clk 0:00:14.2]} 40. Ng4 {[%clk 0:00:59.7]} 40... Bxg4
{[%clk 0:00:13.5]} 41. hxg4 {[%clk 0:00:59.8]} 41... Ng6 {[%clk 0:00:10.5]} 42.
h5 {[%clk 0:00:58.7]} 42... Nf4 {[%clk 0:00:11]} 43. Kf2 {[%clk 0:00:58.9]}
43... Kh6 {[%clk 0:00:11]} 44. Nb1 {[%clk 0:00:50.8]} 44... Kg5 {[%clk
0:00:10.9]} 45. Nd2 {[%clk 0:00:48.2]} 45... Kxg4 {[%clk 0:00:06.6]} 46. h6
{[%clk 0:00:48.5]} 46... Ng6 {[%clk 0:00:05.5]} 47. h7 {[%clk 0:00:45.9]} 47...
Kh5 {[%clk 0:00:02]} 48. Nc4 {[%clk 0:00:39.8]} 48... Kh6 {[%clk 0:00:01.9]} 49.
Nxe5 {[%clk 0:00:39.7]} 1-0

[Event "*** Titled Tuesday Blitz"]
[Site "Chess.com"]
[Date "2021.04.20"]
[Round "6"]
[White "kingofthenil"]
[Black "Enriquack"]
[Result "1-0"]
[WhiteElo "2632"]
[BlackElo "2466"]
[TimeControl "180+1"]
[EndTime "11:05:51 PDT"]
[Termination "kingofthenil won by resignation"]

1. e3 {[%clk 0:03:00.9]} 1... g6 {[%clk 0:02:58.4]} 2. Ke2 {[%clk 0:02:54.9]}
2... Bg7 {[%clk 0:02:57.9]} 3. Ke1 {[%clk 0:02:52.4]} 3... Kf8 {[%clk
0:02:48.4]} 4. d4 {[%clk 0:02:49.2]} 4... Ke8 {[%clk 0:02:47.6]} 5. Nf3 {[%clk
0:02:34.2]} 5... Nf6 {[%clk 0:02:39.9]} 6. c4 {[%clk 0:02:26.6]} 6... c5 {[%clk
0:02:33.8]} 7. d5 {[%clk 0:02:23.9]} 7... d6 {[%clk 0:02:32.6]} 8. Nc3 {[%clk
0:02:24]} 8... Nbd7 {[%clk 0:02:28.8]} 9. e4 {[%clk 0:02:23.2]} 9... a6 {[%clk
0:02:28.3]} 10. Bd3 {[%clk 0:02:19.7]} 10... Kf8 {[%clk 0:02:22.6]} 11. h3
{[%clk 0:02:12.9]} 11... Kg8 {[%clk 0:02:17.5]} 12. Bf4 {[%clk 0:02:11.1]} 12...
Nf8 {[%clk 0:02:14.3]} 13. e5 {[%clk 0:02:09.1]} 13... dxe5 {[%clk 0:02:14]} 14.
Nxe5 {[%clk 0:02:06.5]} 14... e6 {[%clk 0:02:06.9]} 15. Qf3 {[%clk 0:02:02]}
15... exd5 {[%clk 0:02:05.7]} 16. cxd5 {[%clk 0:02:02.9]} 16... b5 {[%clk
0:01:30.6]} 17. d6 {[%clk 0:02:01.8]} 17... Be6 {[%clk 0:01:27.3]} 18. Nc6
{[%clk 0:02:01.8]} 18... N8d7 {[%clk 0:01:10.5]} 19. Nxd8 {[%clk 0:01:57.8]}
19... Rxd8 {[%clk 0:01:10.5]} 20. Rd1 {[%clk 0:01:53.3]} 20... Nb6 {[%clk
0:01:02.3]} 21. Ne4 {[%clk 0:01:51.3]} 21... Nfd7 {[%clk 0:00:59.5]} 22. Bg5
{[%clk 0:01:48.9]} 22... Re8 {[%clk 0:00:55.8]} 23. Kf1 {[%clk 0:01:48.4]} 23...
f5 {[%clk 0:00:55.5]} 24. Nc3 {[%clk 0:01:45.9]} 24... b4 {[%clk 0:00:52.3]} 25.
Ne2 {[%clk 0:01:32.6]} 25... Bd5 {[%clk 0:00:51.7]} 26. Qg3 {[%clk 0:01:32.4]}
26... Bxa2 {[%clk 0:00:48.2]} 27. Nf4 {[%clk 0:01:30.5]} 27... Kf7 {[%clk
0:00:45.4]} 28. b3 {[%clk 0:01:28.6]} 28... Bxb3 {[%clk 0:00:40.6]} 29. Rb1
{[%clk 0:01:10.8]} 29... c4 {[%clk 0:00:30.9]} 30. Rxb3 {[%clk 0:01:09.2]} 30...
cxb3 {[%clk 0:00:31.8]} 31. Bxf5 {[%clk 0:00:59.3]} 31... Nc5 {[%clk 0:00:26.1]}
32. Qf3 {[%clk 0:00:23.2]} 32... gxf5 {[%clk 0:00:21.9]} 33. Qh5+ {[%clk
0:00:22.9]} 33... Kf8 {[%clk 0:00:20.4]} 34. Be7+ {[%clk 0:00:23]} 34... Rxe7
{[%clk 0:00:20.2]} 35. dxe7+ {[%clk 0:00:23.6]} 35... Kxe7 {[%clk 0:00:21.1]}
36. Qxf5 {[%clk 0:00:20.4]} 36... b2 {[%clk 0:00:17.6]} 37. Qxc5+ {[%clk
0:00:20.2]} 37... Kd7 {[%clk 0:00:16.5]} 38. Qxb4 {[%clk 0:00:18.2]} 38... Nc4
{[%clk 0:00:11.6]} 39. g3 {[%clk 0:00:14.5]} 39... Na3 {[%clk 0:00:06.4]} 40.
Qb7+ {[%clk 0:00:09.7]} 40... Kd6 {[%clk 0:00:04.6]} 41. Kg2 {[%clk 0:00:10.6]}
41... Rg8 {[%clk 0:00:03.8]} 42. Qxa6+ {[%clk 0:00:10.1]} 1-0

[Event "*** Titled Tuesday Blitz"]
[Site "Chess.com"]
[Date "2021.04.20"]
[Round "6"]
[White "Mbneu"]
[Black "LamaChampetre"]
[Result "0-1"]
[WhiteElo "2316"]
[BlackElo "2199"]
[TimeControl "180+1"]
[EndTime "11:05:52 PDT"]
[Termination "LamaChampetre won on time"]

1. d4 {[%clk 0:02:58.3]} 1... Nf6 {[%clk 0:02:54.8]} 2. c4 {[%clk 0:02:58.1]}
2... g6 {[%clk 0:02:53.8]} 3. Nc3 {[%clk 0:02:57.9]} 3... d5 {[%clk 0:02:51.9]}
4. cxd5 {[%clk 0:02:58.8]} 4... Nxd5 {[%clk 0:02:51.2]} 5. g3 {[%clk 0:02:59.5]}
5... Bg7 {[%clk 0:02:40.9]} 6. Bg2 {[%clk 0:02:59.7]} 6... Nxc3 {[%clk
0:02:40.4]} 7. bxc3 {[%clk 0:03:00.6]} 7... O-O {[%clk 0:02:40.5]} 8. e3 {[%clk
0:03:01.2]} 8... c5 {[%clk 0:02:36.7]} 9. Ne2 {[%clk 0:03:01.3]} 9... Nc6 {[%clk
0:02:32.2]} 10. O-O {[%clk 0:03:01.6]} 10... Bg4 {[%clk 0:02:30.8]} 11. h3
{[%clk 0:03:00.5]} 11... Bf5 {[%clk 0:02:27.6]} 12. e4 {[%clk 0:02:51.2]} 12...
Bc8 {[%clk 0:02:18.1]} 13. d5 {[%clk 0:02:51.4]} 13... Na5 {[%clk 0:02:10.5]}
14. Be3 {[%clk 0:02:44.7]} 14... b6 {[%clk 0:02:10.1]} 15. Qc1 {[%clk
0:02:44.8]} 15... e6 {[%clk 0:02:07.2]} 16. Bh6 {[%clk 0:02:42.5]} 16... exd5
{[%clk 0:02:02.6]} 17. Bxg7 {[%clk 0:02:41.1]} 17... Kxg7 {[%clk 0:02:02.7]} 18.
exd5 {[%clk 0:02:37.6]} 18... Ba6 {[%clk 0:01:53.9]} 19. Re1 {[%clk 0:02:36.1]}
19... Bxe2 {[%clk 0:01:30.8]} 20. Rxe2 {[%clk 0:02:35.3]} 20... Qd6 {[%clk
0:01:15.9]} 21. Qg5 {[%clk 0:02:18.4]} 21... Rae8 {[%clk 0:01:12.7]} 22. Rae1
{[%clk 0:02:16.9]} 22... h6 {[%clk 0:01:03.2]} 23. Qg4 {[%clk 0:02:01.6]} 23...
Rxe2 {[%clk 0:00:56.5]} 24. Qxe2 {[%clk 0:01:42.1]} 24... Rd8 {[%clk 0:00:54.2]}
25. f4 {[%clk 0:01:40.1]} 25... Qf6 {[%clk 0:00:38.1]} 26. Qe7 {[%clk
0:01:15.6]} 26... Nc4 {[%clk 0:00:31]} 27. Bf1 {[%clk 0:01:03.9]} 27... Nd2
{[%clk 0:00:24]} 28. Bg2 {[%clk 0:00:58.8]} 28... Nc4 {[%clk 0:00:22.2]} 29. Kh2
{[%clk 0:00:50.3]} 29... Qxc3 {[%clk 0:00:20.3]} 30. Re5 {[%clk 0:00:43.5]}
30... Nxe5 {[%clk 0:00:16.5]} 31. fxe5 {[%clk 0:00:43.6]} 31... Rf8 {[%clk
0:00:11]} 32. d6 {[%clk 0:00:34.7]} 32... Qd4 {[%clk 0:00:11]} 33. d7 {[%clk
0:00:31.3]} 33... c4 {[%clk 0:00:11.3]} 34. e6 {[%clk 0:00:13.9]} 34... c3
{[%clk 0:00:06.5]} 35. exf7 {[%clk 0:00:06.6]} 35... c2 {[%clk 0:00:05.7]} 36.
d8=Q {[%clk 0:00:04.3]} 36... Qxd8 {[%clk 0:00:05.2]} 37. Qe5+ {[%clk
0:00:04.4]} 37... Kh7 {[%clk 0:00:04.7]} 38. Qc3 {[%clk 0:00:02.7]} 38... Qc8
{[%clk 0:00:04.7]} 0-1

[Event "*** Titled Tuesday Blitz"]
[Site "Chess.com"]
[Date "2021.04.20"]
[Round "6"]
[White "anon102030"]
[Black "mishanick"]
[Result "0-1"]
[WhiteElo "2728"]
[BlackElo "2967"]
[TimeControl "180+1"]
[EndTime "11:05:53 PDT"]
[Termination "mishanick won by checkmate"]

1. e4 {[%clk 0:03:00.9]} 1... c5 {[%clk 0:03:00.2]} 2. Nc3 {[%clk 0:03:00.7]}
2... d6 {[%clk 0:03:00.7]} 3. g3 {[%clk 0:03:00.8]} 3... Nc6 {[%clk 0:03:01]} 4.
Bg2 {[%clk 0:03:01.3]} 4... g6 {[%clk 0:03:01.7]} 5. d3 {[%clk 0:03:01.5]} 5...
Bg7 {[%clk 0:03:02.3]} 6. Be3 {[%clk 0:03:01.7]} 6... Rb8 {[%clk 0:03:01.3]} 7.
Nf3 {[%clk 0:02:55]} 7... Nd4 {[%clk 0:03:00.1]} 8. Bxd4 {[%clk 0:02:46.3]} 8...
cxd4 {[%clk 0:03:00.1]} 9. Ne2 {[%clk 0:02:47]} 9... Qb6 {[%clk 0:02:59.1]} 10.
c3 {[%clk 0:02:47.9]} 10... Qxb2 {[%clk 0:02:40]} 11. Nfxd4 {[%clk 0:02:31.2]}
11... Bd7 {[%clk 0:02:38.4]} 12. O-O {[%clk 0:02:29.4]} 12... Nf6 {[%clk
0:02:37.3]} 13. h3 {[%clk 0:02:18.9]} 13... O-O {[%clk 0:02:36.6]} 14. f4 {[%clk
0:02:19]} 14... Qb6 {[%clk 0:02:31.1]} 15. Kh1 {[%clk 0:02:14.4]} 15... Qc7
{[%clk 0:02:25.7]} 16. Qd2 {[%clk 0:02:13.4]} 16... b5 {[%clk 0:02:25.9]} 17.
Rac1 {[%clk 0:02:12.3]} 17... a5 {[%clk 0:02:25.6]} 18. g4 {[%clk 0:02:05.6]}
18... Rbd8 {[%clk 0:01:59.2]} 19. Ng3 {[%clk 0:02:00.4]} 19... e5 {[%clk
0:01:56.1]} 20. Nde2 {[%clk 0:01:54.2]} 20... exf4 {[%clk 0:01:54.4]} 21. Nxf4
{[%clk 0:01:43.1]} 21... Be6 {[%clk 0:01:54.6]} 22. d4 {[%clk 0:01:33.9]} 22...
Bc4 {[%clk 0:01:53.8]} 23. Rf2 {[%clk 0:01:34.2]} 23... Qe7 {[%clk 0:01:48.5]}
24. g5 {[%clk 0:01:27.4]} 24... Nd7 {[%clk 0:01:45.4]} 25. h4 {[%clk 0:01:26.3]}
25... f6 {[%clk 0:01:43.3]} 26. Re1 {[%clk 0:01:05.6]} 26... fxg5 {[%clk
0:01:41.4]} 27. Nd5 {[%clk 0:01:05.8]} 27... Bxd5 {[%clk 0:01:09.8]} 28. exd5
{[%clk 0:01:06.7]} 28... Rxf2 {[%clk 0:01:09.6]} 29. Qxf2 {[%clk 0:01:06]} 29...
Qf6 {[%clk 0:01:09.1]} 30. Qe2 {[%clk 0:00:58]} 30... gxh4 {[%clk 0:01:04.1]}
31. Ne4 {[%clk 0:00:57.5]} 31... Qe7 {[%clk 0:01:04.1]} 32. Bh3 {[%clk
0:00:53.5]} 32... b4 {[%clk 0:00:57.7]} 33. cxb4 {[%clk 0:00:35.9]} 33... axb4
{[%clk 0:00:58.6]} 34. Qd2 {[%clk 0:00:36.5]} 34... Nf8 {[%clk 0:00:48.7]} 35.
Ng5 {[%clk 0:00:30.7]} 35... Qb7 {[%clk 0:00:47]} 36. Be6+ {[%clk 0:00:29.2]}
36... Nxe6 {[%clk 0:00:45.5]} 37. Nxe6 {[%clk 0:00:28.1]} 37... Qxd5+ {[%clk
0:00:44.5]} 38. Kh2 {[%clk 0:00:27.9]} 38... Rc8 {[%clk 0:00:33.8]} 39. Nxg7
{[%clk 0:00:21.2]} 39... Kxg7 {[%clk 0:00:32.4]} 40. Re7+ {[%clk 0:00:20.8]}
40... Kg8 {[%clk 0:00:32]} 41. Qe2 {[%clk 0:00:04.9]} 41... Qf5 {[%clk
0:00:26.3]} 42. Re8+ {[%clk 0:00:02.9]} 42... Rxe8 {[%clk 0:00:26.6]} 43. Qxe8+
{[%clk 0:00:03.8]} 43... Kg7 {[%clk 0:00:27.2]} 44. Qe7+ {[%clk 0:00:03.6]}
44... Kh6 {[%clk 0:00:27.8]} 45. Qxd6 {[%clk 0:00:03.5]} 45... Qf2+ {[%clk
0:00:26.6]} 46. Kh1 {[%clk 0:00:02.7]} 46... h3 {[%clk 0:00:25.2]} 47. Qe5
{[%clk 0:00:01.5]} 47... Qg2# {[%clk 0:00:25]} 0-1

[Event "*** Titled Tuesday Blitz"]
[Site "Chess.com"]
[Date "2021.04.20"]
[Round "6"]
[White "Sanyura"]
[Black "ErikRonka"]
[Result "0-1"]
[WhiteElo "2594"]
[BlackElo "2478"]
[TimeControl "180+1"]
[EndTime "11:05:54 PDT"]
[Termination "ErikRonka won on time"]

1. e4 {[%clk 0:02:57]} 1... c6 {[%clk 0:03:00.1]} 2. Nc3 {[%clk 0:02:56.1]} 2...
d5 {[%clk 0:03:01]} 3. Nf3 {[%clk 0:02:56]} 3... dxe4 {[%clk 0:03:01.1]} 4. Nxe4
{[%clk 0:02:55.8]} 4... Nd7 {[%clk 0:03:01.5]} 5. Qe2 {[%clk 0:02:55.3]} 5...
Ndf6 {[%clk 0:02:59.7]} 6. c3 {[%clk 0:02:52.7]} 6... Nxe4 {[%clk 0:02:53.9]} 7.
Qxe4 {[%clk 0:02:53.6]} 7... Nf6 {[%clk 0:02:53.2]} 8. Qh4 {[%clk 0:02:49.3]}
8... Bf5 {[%clk 0:02:25.8]} 9. d4 {[%clk 0:02:47.1]} 9... e6 {[%clk 0:02:22]}
10. Bc4 {[%clk 0:02:45.1]} 10... Be7 {[%clk 0:02:21.2]} 11. Qg3 {[%clk
0:02:38.1]} 11... O-O {[%clk 0:02:14.5]} 12. Ne5 {[%clk 0:02:19.4]} 12... c5
{[%clk 0:01:44.2]} 13. Be3 {[%clk 0:02:07.1]} 13... cxd4 {[%clk 0:01:35.7]} 14.
Bxd4 {[%clk 0:02:04.6]} 14... Ne4 {[%clk 0:01:08.2]} 15. Qf3 {[%clk 0:02:03.6]}
15... Bf6 {[%clk 0:01:03.9]} 16. Qe2 {[%clk 0:01:56.3]} 16... Qc7 {[%clk
0:00:52.8]} 17. Nf3 {[%clk 0:01:39.2]} 17... e5 {[%clk 0:00:39.9]} 18. Be3
{[%clk 0:01:32.3]} 18... Nd6 {[%clk 0:00:38.8]} 19. Bb3 {[%clk 0:01:30.8]} 19...
Bg4 {[%clk 0:00:34]} 20. h3 {[%clk 0:01:29.3]} 20... Bh5 {[%clk 0:00:33.9]} 21.
g4 {[%clk 0:01:28.7]} 21... Bg6 {[%clk 0:00:34]} 22. O-O {[%clk 0:01:24.5]}
22... Rad8 {[%clk 0:00:24.4]} 23. Rfd1 {[%clk 0:01:17.7]} 23... Rfe8 {[%clk
0:00:20.9]} 24. g5 {[%clk 0:01:09.9]} 24... Be7 {[%clk 0:00:20.6]} 25. Nxe5
{[%clk 0:01:09.9]} 25... Nf5 {[%clk 0:00:20.6]} 26. Nxg6 {[%clk 0:01:06.2]}
26... hxg6 {[%clk 0:00:21.5]} 27. Qf3 {[%clk 0:01:06.2]} 27... Nxe3 {[%clk
0:00:20.4]} 28. Bxf7+ {[%clk 0:01:00.6]} 28... Kh7 {[%clk 0:00:20.5]} 29. fxe3
{[%clk 0:00:32]} 29... Rxd1+ {[%clk 0:00:19.4]} 30. Rxd1 {[%clk 0:00:32.9]}
30... Rd8 {[%clk 0:00:19.4]} 31. Rf1 {[%clk 0:00:15.9]} 31... Bxg5 {[%clk
0:00:18.9]} 32. Kh1 {[%clk 0:00:09.5]} 32... Rd2 {[%clk 0:00:18.2]} 33. Rf2
{[%clk 0:00:05.4]} 33... Rxf2 {[%clk 0:00:17.8]} 34. Qxf2 {[%clk 0:00:06.3]}
34... Qd7 {[%clk 0:00:18.3]} 35. Qf3 {[%clk 0:00:05.6]} 35... Qd2 {[%clk
0:00:13.3]} 36. Qe4 {[%clk 0:00:03.4]} 36... Qe1+ {[%clk 0:00:11.1]} 37. Kg2
{[%clk 0:00:03]} 37... Qe2+ {[%clk 0:00:11.3]} 38. Kh1 {[%clk 0:00:01.5]} 38...
Qf1+ {[%clk 0:00:11.2]} 39. Kh2 {[%clk 0:00:01.8]} 39... Qxf7 {[%clk 0:00:11.5]}
40. Qg4 {[%clk 0:00:01.3]} 40... Qf5 {[%clk 0:00:11]} 0-1